bitfinex-derivatives/quotes_SOLF0:USTF0_20241002
["timestamp","ask_amount","ask_price","bid_price","bid_amount"]
[1727901360663,3.71002,139.49,139.45,3.5859]
[1727901361165,0.12502,139.49,139.42,39.0012]
[1727901361874,0.12502,139.49,139.46,3.5856]
[1727901362175,0.12502,139.49,139.44,27.53]
[1727901362469,0.12502,139.55,139.47,8.74]
[1727901362861,0.12502,139.55,139.49,27.53]
[1727901363064,0.12502,139.55,139.5,2.7061]
[1727901363272,1.52042,139.61,139.51,27.53]
[1727901363273,0.12502,139.61,139.51,27.53]
[1727901363475,0.12502,139.61,139.52,8.74]
[1727901364371,3.5832,139.56,139.52,12.324]
[1727901364771,3.51053168,139.6,139.52,8.74]
[1727901364975,0.12502,139.61,139.52,8.74]
[1727901365173,27.53,139.6,139.52,8.74]
[1727901365474,3.5845,139.51,139.49,0.12502]
[1727901365864,3.49612139,139.55,139.49,0.12502]
[1727901366068,27.53,139.55,139.49,0.12502]
[1727901366267,31.18057284,139.55,139.49,0.12502]
[1727901366680,3.5845,139.51,139.49,0.12502]
[1727901366875,1.3524,139.58,139.49,0.12502]
[1727901367071,8.74,139.59,139.49,0.12502]
[1727901367267,3.5835,139.55,139.49,0.12502]
[1727901367663,3.5835,139.55,139.51,3.5844]
[1727901367872,3.584,139.53,139.49,0.12502]
[1727901368172,12.33036903,139.59,139.49,0.12502]
[1727901368173,27.53,139.57,139.49,0.12502]
[1727901368476,3.5847,139.5,139.49,0.12502]
[1727901368675,27.53,139.55,139.49,0.12502]
[1727901369572,12.33036903,139.59,139.49,0.12502]
[1727901369573,3.5837,139.54,139.49,0.12502]
[1727901369972,3.5837,139.54,139.5,3.5845]
[1727901370276,27.53,139.57,139.49,0.12502]
[1727901370871,3.5846,139.51,139.49,0.12502]
[1727901372577,3.5837,139.54,139.5,3.5845]
[1727901372780,3.5837,139.54,139.49,0.12502]
[1727901372781,3.50883841,139.56,139.49,0.12502]
[1727901372981,27.53,139.55,139.49,0.12502]
[1727901373182,28.9137,139.55,139.49,0.12502]
[1727901373480,3.5847,139.5,139.49,0.12502]
[1727901374178,3.586,139.45,139.43,0.12502]
[1727901374374,3.58535885,139.49,139.43,0.12502]
[1727901374679,3.5862,139.45,139.43,0.12502]
[1727901375067,3.66366164,139.48,139.43,0.12502]
[1727901375270,3.5863,139.44,139.43,0.12502]
[1727901375672,3.6615095,139.48,139.43,0.12502]
[1727901376282,3.5859,139.46,139.43,0.12502]
[1727901376476,27.53,139.5,139.43,0.12502]
[1727901376675,27.53,139.5,139.44,3.5861]
[1727901376882,3.5857,139.47,139.43,0.12502]
[1727901377079,27.53,139.5,139.43,0.12502]
[1727901377483,3.5853,139.48,139.43,0.12502]
[1727901378281,3.5852,139.49,139.43,0.12502]
[1727901378481,3.5852,139.49,139.45,3.5859]
[1727901378683,27.53,139.53,139.43,0.12502]
[1727901378985,8.74,139.54,139.47,3.5853]
[1727901379178,1.46532,139.55,139.45,27.53]
[1727901379378,3.5841,139.53,139.46,1.4303]
[1727901379580,3.5841,139.53,139.47,8.74]
[1727901379778,1.46532,139.55,139.47,12.3253]
[1727901380079,28.99532,139.55,139.46,1.4303]
[1727901380275,3.5851,139.49,139.45,3.5858]
[1727901380588,27.53,139.52,139.44,8.74]
[1727901381082,3.585,139.49,139.44,8.74]
[1727901381282,27.53,139.52,139.44,8.74]
[1727901381981,3.5848,139.5,139.46,3.5856]
[1727901382179,1.46532,139.55,139.44,36.27]
[1727901382180,28.99532,139.55,139.44,36.27]
[1727901382479,1.46532,139.55,139.44,36.27]
[1727901382679,3.5843,139.52,139.48,3.5851]
[1727901382878,3.5843,139.52,139.44,36.27]
[1727901383390,0.12502,139.55,139.44,36.27]
[1727901383772,3.5843,139.52,139.44,36.27]
[1727901383981,0.12502,139.55,139.44,36.27]
[1727901384181,0.12502,139.55,139.48,3.585]
[1727901384391,27.65502,139.55,139.44,8.74]
[1727901385080,27.53,139.52,139.43,1.55532]
[1727901385585,36.27,139.52,139.43,1.55532]
[1727901385790,27.53,139.5,139.43,0.12502]
[1727901385988,3.5499678,139.49,139.43,0.12502]
[1727901386289,3.5859,139.46,139.43,3.71142]
[1727901386782,3.586,139.45,139.43,0.12502]
[1727901387585,28.9574,139.5,139.43,0.12502]
[1727901387787,3.5859,139.46,139.43,3.71152]
[1727901388786,3.586,139.45,139.43,0.12502]
[1727901389382,3.58935775,139.49,139.43,0.12502]
[1727901389589,3.5863,139.44,139.43,0.12502]
[1727901390091,31.18283225,139.45,139.37,0.12502]
[1727901390287,1.417,139.43,139.37,0.12502]
[1727901391189,3.5878,139.38,139.37,0.12502]
[1727901391992,7.11483616,139.38,139.37,0.12502]
[1727901392685,3.5881,139.37,139.34,1.001]
[1727901392886,8.72,139.37,139.34,1.001]
[1727901393086,28.9086,139.36,139.31,1.12602]
[1727901393399,3.5893,139.33,139.31,1.12602]
[1727901393697,3.56327529,139.35,139.31,1.12602]
[1727901393897,3.5893,139.32,139.31,1.12602]
[1727901394198,37.6286,139.36,139.31,1.12602]
[1727901394395,1.3786,139.36,139.31,1.12602]
[1727901394595,8.72,139.39,139.31,1.12602]
[1727901394792,8.72,139.39,139.35,3.5886]
[1727901394997,8.72,139.39,139.31,1.12602]
[1727901395292,3.5874,139.4,139.36,3.5882]
[1727901395493,77.46,139.44,139.31,1.12602]
[1727901395798,8.84502,139.43,139.33,27.53]
[1727901396003,8.84502,139.43,139.34,4.2047]
[1727901396189,27.53,139.42,139.31,1.12602]
[1727901396696,27.53,139.42,139.31,28.65602]
[1727901397098,3.5876,139.39,139.35,3.5885]
[1727901397298,27.53,139.42,139.31,28.65602]
[1727901397993,1.3492,139.41,139.31,1.12602]
[1727901398299,3.5885,139.36,139.32,3.5892]
[1727901398697,2.7942,139.41,139.31,1.12602]
[1727901399293,3.5882,139.37,139.33,3.5891]
[1727901399499,2.7942,139.41,139.31,1.12602]
[1727901399996,3.5883,139.36,139.32,3.5892]
[1727901400502,3.5883,139.36,139.31,1.12602]
[1727901400704,3.5883,139.36,139.32,3.5892]
[1727901401393,3.5882,139.37,139.33,3.5889]
[1727901401593,3.5882,139.37,139.31,1.12602]
[1727901402203,2.7942,139.41,139.31,1.12602]
[1727901402505,1.445,139.41,139.31,28.65602]
[1727901402690,1.445,139.41,139.34,3.5888]
[1727901402995,3.5877,139.39,139.31,28.65602]
[1727901403395,3.5877,139.39,139.36,3.5882]
[1727901404602,3.5868,139.42,139.39,3.5874]
[1727901405004,0.12502,139.43,139.34,36.25]
[1727901405201,3.5872,139.41,139.34,36.25]
[1727901405500,0.12502,139.43,139.34,8.72]
[1727901406203,27.65502,139.43,139.34,8.72]
[1727901406405,27.65502,139.43,139.35,3.5885]
[1727901406603,27.65502,139.43,139.34,8.72]
[1727901407105,3.5871,139.41,139.38,3.5878]
[1727901407402,3.5871,139.41,139.34,8.72]
[1727901407601,0.12502,139.43,139.34,8.72]
[1727901407801,0.12502,139.43,139.36,27.53]
[1727901407998,0.12502,139.43,139.37,4.0776]
[1727901408396,0.12502,139.43,139.39,27.53]
[1727901408602,0.12502,139.43,139.39,36.25]
[1727901409008,0.12502,139.43,139.42,3.5868]
[1727901409195,0.12502,139.49,139.41,27.53]
[1727901410602,3.71002,139.49,139.46,3.5857]
[1727901410800,0.12502,139.49,139.44,8.72]
[1727901411302,3.71012,139.49,139.46,3.5856]
[1727901411600,3.71012,139.49,139.44,8.72]
[1727901411601,0.12502,139.49,139.44,8.72]
[1727901412301,0.12502,139.49,139.45,2.7577]
[1727901412499,0.12502,139.49,139.48,3.5852]
[1727901413698,0.12502,139.49,139.47,3.5854]
[1727901414291,0.12502,139.49,139.45,2.7577]
[1727901414494,0.12502,139.49,139.48,3.5852]
[1727901415906,0.12502,139.49,139.48,3.18059397]
[1727901418807,0.12502,139.49,139.45,1.3674]
[1727901419002,0.12502,139.49,139.44,1.3758]
[1727901420403,0.12502,139.49,139.42,10.0783]
[1727901420706,3.5857,139.47,139.44,3.586]
[1727901420906,3.61266759,139.48,139.4,1.3414]
[1727901421114,27.53,139.48,139.4,1.3414]
[1727901421411,3.5854,139.48,139.45,3.586]
[1727901421713,0.12502,139.49,139.43,39.90542487]
[1727901422010,0.12502,139.49,139.48,3.5852]
[1727901422906,0.12502,139.55,139.5,3.5846]
[1727901423113,0.12502,139.55,139.46,1.3817]
[1727901423414,0.12502,139.55,139.47,3.5854]
[1727901423602,0.12502,139.55,139.45,1.3226]
[1727901423603,3.5849,139.5,139.45,1.3226]
[1727901424204,27.53,139.52,139.43,0.12502]
[1727901424708,27.53,139.5,139.43,0.12502]
[1727901424913,1.441,139.49,139.43,0.12502]
[1727901425124,1.472,139.51,139.43,0.12502]
[1727901425305,1.3499,139.51,139.43,0.12502]
[1727901425506,8.7,139.53,139.43,31.20344966]
[1727901425808,8.7,139.53,139.43,27.65502]
[1727901426002,3.5848,139.5,139.47,3.5855]
[1727901426311,8.7,139.53,139.43,27.65502]
[1727901426503,3.5855,139.47,139.44,3.5862]
[1727901426808,27.53,139.51,139.43,0.12502]
[1727901427011,3.5857,139.47,139.43,3.71132]
[1727901427208,3.60882266,139.49,139.43,0.12502]
[1727901427514,27.53,139.49,139.43,0.12502]
[1727901427811,3.5859,139.46,139.43,0.12502]
[1727901428208,3.5859,139.46,139.43,3.71152]
[1727901428507,3.5863,139.44,139.43,0.12502]
[1727901429307,27.53,139.45,139.37,0.12502]
[1727901429827,27.53,139.42,139.37,0.12502]
[1727901430004,8.7,139.43,139.37,0.12502]
[1727901430205,1.4053,139.47,139.37,27.65502]
[1727901430513,41.18890035,139.48,139.38,8.7]
[1727901430715,41.18890035,139.48,139.39,3.5875]
[1727901431614,41.18890035,139.48,139.38,8.7]
[1727901431819,13.65890035,139.48,139.38,8.7]
[1727901432423,3.5863,139.44,139.4,3.5871]
[1727901433021,3.5867,139.43,139.39,3.5874]
[1727901433218,27.53,139.46,139.37,0.12502]
[1727901433614,3.5877,139.39,139.37,0.12502]
[1727901433921,3.63999332,139.41,139.37,0.12502]
[1727901434215,3.5875,139.4,139.37,0.12502]
[1727901434419,8.7,139.43,139.37,0.12502]
[1727901434620,3.5873,139.4,139.37,3.71302]
[1727901434811,8.7,139.43,139.37,0.12502]
[1727901436316,27.53,139.46,139.37,0.12502]
[1727901436919,27.53,139.46,139.38,3.5877]
[1727901437325,27.53,139.44,139.37,0.12502]
[1727901437515,8.7,139.43,139.37,0.12502]
[1727901437726,3.5876,139.39,139.37,0.12502]
[1727901437918,3.51570012,139.41,139.37,0.12502]
[1727901438113,8.7,139.43,139.37,0.12502]
[1727901438315,3.5878,139.38,139.37,0.12502]
[1727901438816,3.5878,139.38,139.31,1.12602]
[1727901438817,3.589,139.34,139.31,1.12602]
[1727901439126,8.7,139.38,139.31,1.12602]
[1727901439618,27.53,139.39,139.31,1.12602]
[1727901439922,1.6143,139.4,139.31,1.12602]
[1727901439923,3.5882,139.37,139.31,1.12602]
[1727901440226,8.7,139.38,139.31,1.12602]
[1727901440430,3.5882,139.37,139.33,3.5891]
[1727901440615,3.66964882,139.41,139.33,27.53]
[1727901440919,0.12502,139.61,139.37,3.5878]
[1727901440920,3.587,139.42,139.37,3.5878]
[1727901441126,8.82502,139.43,139.37,3.5878]
[1727901441624,8.82502,139.43,139.34,4.99837869]
[1727901442122,8.82502,139.43,139.34,1.3811]
[1727901442323,8.82502,139.43,139.37,3.5879]
[1727901442825,8.82502,139.43,139.34,1.3811]
[1727901443028,8.82502,139.43,139.35,4.91834682]
[1727901443325,3.5871,139.41,139.37,3.5879]
[1727901444924,3.5873,139.4,139.36,3.5882]
[1727901445319,3.5873,139.4,139.35,1.4006]
[1727901445320,3.71172,139.43,139.35,28.9306]
[1727901445624,0.12502,139.43,139.4,3.5871]
[1727901445822,0.12502,139.43,139.36,1.3047]
[1727901446027,3.5868,139.42,139.38,3.5876]
[1727901446222,0.12502,139.43,139.36,1.3047]
[1727901446627,3.71172,139.43,139.38,3.5878]
[1727901447530,0.12502,139.43,139.38,3.5878]
[1727901447729,3.5868,139.42,139.38,3.5878]
[1727901449032,3.71162,139.43,139.39,3.5875]
[1727901449329,0.12502,139.43,139.36,1.3047]
[1727901450426,3.587,139.42,139.38,3.5877]
[1727901450826,3.5872,139.41,139.37,3.588]
[1727901451221,0.12502,139.43,139.36,1.3047]
[1727901451422,3.5869,139.42,139.38,3.5877]
[1727901451824,0.12502,139.43,139.36,1.3047]
[1727901452029,0.12502,139.43,139.4,3.5871]
[1727901452927,0.12502,139.43,139.36,1.3047]
[1727901452928,0.12502,139.43,139.37,3.5879]
[1727901453127,0.12502,139.43,139.36,1.3047]
[1727901453632,3.5872,139.41,139.38,3.5876]
[1727901456337,0.12502,139.43,139.36,1.3047]
[1727901456733,3.5869,139.42,139.39,3.5873]
[1727901456937,0.12502,139.43,139.36,1.3047]
[1727901457634,3.5868,139.42,139.39,3.5874]
[1727901459940,3.5871,139.41,139.36,1.3047]
[1727901460240,0.12502,139.43,139.36,1.3047]
[1727901460738,3.5872,139.41,139.38,3.5878]
[1727901462445,3.5873,139.4,139.38,3.5878]
[1727901462738,0.12502,139.43,139.36,1.3047]
[1727901463427,3.588,139.38,139.36,1.3047]
[1727901463833,27.65502,139.43,139.34,4.97134068]
[1727901464034,0.12502,139.43,139.34,1.3811]
[1727901464436,3.5871,139.41,139.34,4.9619574]
[1727901465140,0.12502,139.43,139.34,4.9619574]
[1727901465543,0.12502,139.43,139.34,4.9699]
[1727901465544,3.5882,139.37,139.34,4.9699]
[1727901465845,3.5882,139.37,139.34,4.96123986]
[1727901466046,3.588,139.38,139.35,3.5885]
[1727901466344,0.12502,139.43,139.34,5.04806157]
[1727901466544,3.5874,139.4,139.37,3.5879]
[1727901467249,3.6398642,139.43,139.34,5.04806157]
[1727901467449,0.12502,139.43,139.34,5.04806157]
[1727901467644,0.12502,139.43,139.35,17.22]
[1727901467840,3.7378077,139.43,139.35,17.22]
[1727901468036,3.5874,139.4,139.37,3.5879]
[1727901469546,20.9578077,139.43,139.34,1.3811]
[1727901469849,17.22,139.41,139.33,1.306]
[1727901470051,3.5887,139.35,139.33,1.306]
[1727901470255,25.9,139.39,139.31,1.12602]
[1727901470547,25.9,139.39,139.31,4.71552]
[1727901470548,3.589,139.34,139.31,4.71552]
[1727901470849,25.9,139.39,139.31,1.12602]
[1727901471647,8.68,139.39,139.31,1.12602]
[1727901472049,10.036,139.39,139.31,1.12602]
[1727901472248,3.5882,139.37,139.31,1.12602]
[1727901472552,27.58,139.38,139.31,1.12602]
[1727901473140,3.5883,139.36,139.32,3.5893]
[1727901473541,10.036,139.39,139.32,3.5893]
[1727901474740,10.036,139.39,139.31,1.12602]
[1727901475149,3.5881,139.38,139.31,1.12602]
[1727901475350,2.6678,139.42,139.31,1.12602]
[1727901475649,8.68,139.41,139.32,8.68]
[1727901475851,3.5876,139.39,139.33,1.4166]
[1727901476838,3.5879,139.38,139.33,1.4166]
[1727901477454,3.5879,139.38,139.34,3.5887]
[1727901477754,3.5879,139.38,139.33,1.4166]
[1727901477951,3.5879,139.38,139.35,3.5885]
[1727901478955,8.68,139.41,139.33,1.4166]
[1727901479153,3.5882,139.37,139.34,3.5887]
[1727901480564,3.5885,139.36,139.33,5.0056]
[1727901480752,8.68,139.41,139.33,1.4166]
[1727901481255,3.5881,139.37,139.34,3.5887]
[1727901481561,3.5884,139.36,139.33,5.0055]
[1727901482056,3.5886,139.36,139.33,1.4166]
[1727901482552,8.68,139.41,139.33,1.4166]
[1727901482860,0.12502,139.43,139.34,8.66]
[1727901483059,0.12502,139.43,139.35,30.3531]
[1727901483262,0.12502,139.43,139.38,3.5876]
[1727901483558,0.12502,139.43,139.35,33.88740401]
[1727901483772,0.12502,139.43,139.35,30.3531]
[1727901484056,3.5878,139.39,139.36,3.5882]
[1727901484254,3.67583442,139.43,139.35,2.7731]
[1727901484255,0.12502,139.43,139.35,2.7731]
[1727901484856,3.67574067,139.42,139.35,6.3615]
[1727901485766,3.5878,139.39,139.35,6.3615]
[1727901485958,0.12502,139.43,139.33,28.9966]
[1727901486159,0.12502,139.43,139.34,3.5887]
[1727901486160,27.70502,139.43,139.34,3.5887]
[1727901486560,1.4125,139.42,139.31,37.36602]
[1727901486863,2.4125,139.42,139.32,3.5892]
[1727901487557,2.4125,139.42,139.33,3.5891]
[1727901487860,3.5882,139.37,139.31,9.78602]
[1727901488055,1.0,139.42,139.34,27.58]
[1727901488258,0.12502,139.43,139.34,27.58]
[1727901488457,3.5871,139.41,139.38,3.5876]
[1727901488961,0.12502,139.43,139.35,1.3394]
[1727901489876,3.5874,139.4,139.36,3.5882]
[1727901490360,0.12502,139.43,139.35,1.3394]
[1727901490567,27.70502,139.43,139.31,37.36602]
[1727901490761,27.70502,139.43,139.31,38.67012]
[1727901491159,27.70502,139.43,139.33,3.589]
[1727901491562,27.58,139.41,139.31,2.43012]
[1727901491764,27.58,139.41,139.32,3.5892]
[1727901491765,3.5887,139.35,139.32,3.5892]
[1727901492169,3.5877,139.39,139.35,3.5884]
[1727901492463,9.9955,139.4,139.35,3.5884]
[1727901492973,9.9955,139.4,139.34,3.5887]
[1727901493667,27.2255,139.4,139.31,19.66012]
[1727901493859,3.5885,139.36,139.32,3.5892]
[1727901494062,27.2255,139.4,139.31,19.66012]
[1727901494365,1.0,139.42,139.36,17.23]
[1727901494564,8.78502,139.43,139.36,17.23]
[1727901494960,3.5876,139.39,139.33,17.23]
[1727901495359,3.5875,139.4,139.36,3.5882]
[1727901495666,26.01502,139.43,139.33,17.23]
[1727901495968,3.5875,139.4,139.36,3.5883]
[1727901496170,26.01502,139.43,139.36,3.5883]
[1727901496558,26.01502,139.43,139.33,17.23]
[1727901497356,3.5877,139.39,139.35,3.5884]
[1727901497557,17.23,139.41,139.31,19.66012]
[1727901498072,26.01502,139.43,139.31,19.66012]
[1727901498268,26.01502,139.43,139.33,17.23]
[1727901498660,3.5875,139.4,139.36,3.5882]
[1727901498860,3.5875,139.4,139.33,17.23]
[1727901499066,3.5878,139.39,139.35,3.5884]
[1727901499564,3.5878,139.39,139.33,17.23]
[1727901499971,3.5878,139.39,139.36,3.5881]
[1727901502669,3.5872,139.41,139.38,3.5878]
[1727901503785,0.12502,139.43,139.37,17.23]
[1727901503974,1.55562,139.49,139.4,17.23]
[1727901504165,1.55562,139.49,139.42,17.23]
[1727901504475,0.12502,139.49,139.44,17.23]
[1727901504672,0.12502,139.49,139.4,25.89]
[1727901504673,0.12502,139.55,139.46,17.23]
[1727901504896,0.12502,139.55,139.46,25.89]
[1727901505176,0.12502,139.55,139.48,17.23]
[1727901505380,0.12502,139.55,139.46,25.89]
[1727901505577,0.12502,139.55,139.48,3.5852]
[1727901505578,3.5841,139.53,139.48,3.5852]
[1727901505765,0.12502,139.55,139.48,3.5852]
[1727901506273,17.35502,139.55,139.46,12.2457]
[1727901506871,17.23,139.53,139.45,6.3877]
[1727901507067,17.23,139.53,139.45,2.8017]
[1727901508677,3.5853,139.48,139.45,2.8017]
[1727901508986,17.23,139.53,139.45,2.8017]
[1727901509177,17.23,139.51,139.45,2.8017]
[1727901509379,3.66747171,139.5,139.43,0.12502]
[1727901509578,27.54,139.5,139.43,0.12502]
[1727901509777,3.54161303,139.49,139.43,0.12502]
[1727901510374,1.3927,139.51,139.43,0.12502]
[1727901510578,3.5852,139.49,139.45,3.5859]
[1727901510786,1.3927,139.51,139.45,3.5859]
[1727901511078,1.3927,139.51,139.43,0.12502]
[1727901511285,3.5849,139.5,139.43,0.12502]
[1727901511483,9.119,139.54,139.43,8.74502]
[1727901511679,3.5844,139.52,139.48,3.5851]
[1727901511882,8.62,139.54,139.48,3.5851]
[1727901513186,3.5847,139.5,139.46,3.5857]
[1727901513385,0.12502,139.55,139.44,27.54]
[1727901513584,0.12502,139.55,139.45,1.3854]
[1727901513782,3.584,139.53,139.48,3.5852]
[1727901513985,3.584,139.53,139.45,1.3854]
[1727901514383,0.12502,139.55,139.45,1.3854]
[1727901514884,0.12502,139.55,139.51,3.5845]
[1727901515187,0.12502,139.55,139.5,27.54]
[1727901515495,1.0,139.57,139.52,27.54]
[1727901515788,1.0,139.57,139.53,8.62]
[1727901515997,1.0,139.57,139.56,3.5832]
[1727901516600,3.70692,139.61,139.58,3.5827]
[1727901516888,0.12502,139.61,139.58,3.5827]
[1727901517891,0.12502,139.61,139.53,8.62]
[1727901518885,0.12502,139.61,139.57,3.5827]
[1727901519592,0.12502,139.61,139.53,8.62]
[1727901520485,3.5832,139.56,139.53,8.62]
[1727901520677,0.12502,139.61,139.53,8.62]
[1727901521582,0.12502,139.61,139.51,2.7507]
[1727901521780,1.3826,139.6,139.51,2.7507]
[1727901521983,10.0026,139.6,139.51,2.7507]
[1727901522289,3.5836,139.55,139.52,3.584]
[1727901522883,10.0026,139.6,139.51,2.7507]
[1727901523091,3.583,139.57,139.53,3.5837]
[1727901523484,3.583,139.57,139.51,2.7507]
[1727901523485,3.583,139.57,139.52,3.584]
[1727901523694,3.5834,139.56,139.51,2.7507]
[1727901523886,10.0026,139.6,139.51,2.7507]
[1727901524194,1.56712,139.61,139.51,2.7507]
[1727901524393,3.583,139.57,139.51,2.7507]
[1727901524985,29.10712,139.61,139.51,2.7507]
[1727901524986,0.12502,139.61,139.53,27.54]
[1727901525692,4.5824,139.59,139.56,3.5829]
[1727901527896,3.583,139.57,139.53,3.5838]
[1727901528103,3.583,139.57,139.51,2.7507]
[1727901528794,4.5825,139.59,139.56,3.583]
[1727901529007,1.0,139.59,139.56,3.583]
[1727901529187,1.0,139.59,139.51,2.7507]
[1727901529585,1.0,139.59,139.53,3.5838]
[1727901529792,1.0,139.59,139.51,2.7507]
[1727901530299,3.5831,139.57,139.54,3.5835]
[1727901530503,1.0,139.59,139.51,2.7507]
[1727901530993,3.584,139.53,139.51,6.3351]
[1727901531588,3.584,139.53,139.5,3.5846]
[1727901531989,3.584,139.53,139.49,96.50124361]
[1727901532199,3.5838,139.54,139.51,3.5843]
[1727901532785,3.584,139.53,139.51,3.5843]
[1727901533499,3.5838,139.54,139.51,3.5843]
[1727901533797,3.5838,139.54,139.49,1.53572]
[1727901534104,3.5838,139.54,139.52,3.5842]
[1727901534698,8.62,139.58,139.49,32.64320276]
[1727901534888,8.62,139.58,139.49,29.07572]
[1727901535092,3.5834,139.55,139.53,3.5838]
[1727901535402,1.0,139.59,139.5,3.65781693]
[1727901535587,1.0,139.59,139.51,17.21]
[1727901535588,18.21,139.59,139.51,17.21]
[1727901535791,1.0,139.64,139.58,17.21]
[1727901535991,18.65992,139.73,139.63,17.21]
[1727901536192,18.65992,139.73,139.68,3.5801]
[1727901536193,5.02882,139.73,139.68,3.5801]
[1727901536400,1.44992,139.73,139.68,3.5801]
[1727901536590,18.65992,139.73,139.61,0.12502]
[1727901536789,3.5801,139.68,139.64,3.5809]
[1727901537093,18.65992,139.73,139.63,8.58]
[1727901537295,18.65992,139.73,139.61,0.12502]
[1727901537296,3.5808,139.66,139.62,3.5816]
[1727901537602,3.57930504,139.68,139.61,0.12502]
[1727901538101,1.3249,139.67,139.61,0.12502]
[1727901538291,4.96472556,139.67,139.61,0.12502]
[1727901538496,1.3249,139.67,139.61,0.12502]
[1727901538795,2.6881,139.67,139.61,0.12502]
[1727901538993,3.5816,139.62,139.61,0.12502]
[1727901539385,6.26346584,139.67,139.61,0.12502]
[1727901540500,3.5816,139.62,139.61,0.12502]
[1727901540799,6.26346584,139.67,139.61,0.12502]
[1727901540800,8.58,139.66,139.61,0.12502]
[1727901541598,3.5809,139.65,139.61,3.70672]
[1727901542705,3.5814,139.63,139.61,0.12502]
[1727901543288,4.90026584,139.67,139.61,0.12502]
[1727901543494,3.5816,139.62,139.61,0.12502]
[1727901547096,3.5823,139.6,139.56,3.5831]
[1727901547295,8.58,139.64,139.55,0.12502]
[1727901547501,1.4177,139.63,139.55,0.12502]
[1727901547805,3.5829,139.58,139.55,0.12502]
[1727901548594,3.5829,139.57,139.55,0.12502]
[1727901549101,1.4177,139.63,139.55,27.62502]
[1727901549305,3.5822,139.6,139.55,27.62502]
[1727901549504,9.58,139.64,139.55,27.62502]
[1727901549505,1.0,139.64,139.55,27.62502]
[1727901549700,1.0,139.64,139.57,27.5]
[1727901550715,3.5818,139.62,139.59,3.5823]
[1727901551001,1.0,139.64,139.56,1.3451]
[1727901551212,3.5823,139.6,139.56,4.9281]
[1727901551511,3.5823,139.6,139.56,1.3451]
[1727901551808,3.5823,139.6,139.57,3.5829]
[1727901552204,3.50386138,139.6,139.55,3.70822]
[1727901552404,1.0,139.64,139.55,0.12502]
[1727901552905,1.0,139.64,139.55,3.70832]
[1727901553306,3.5827,139.58,139.55,3.70832]
[1727901554206,3.5827,139.58,139.55,0.12502]
[1727901554811,1.0,139.64,139.55,0.12502]
[1727901555313,3.5825,139.59,139.56,3.5831]
[1727901556119,1.0,139.64,139.55,27.62502]
[1727901556307,3.5821,139.61,139.58,3.5825]
[1727901556504,9.58,139.64,139.58,3.5825]
[1727901556918,3.582,139.61,139.58,3.5825]
[1727901557804,1.0,139.64,139.55,27.62502]
[1727901558109,1.44992,139.67,139.6,27.5]
[1727901558417,3.70552,139.67,139.6,31.1603445]
[1727901558612,0.12502,139.67,139.63,27.5]
[1727901558814,0.12502,139.67,139.66,3.5806]
[1727901559301,1.0,139.69,139.67,3.5801]
[1727901559905,1.0,139.69,139.68,3.5801]
[1727901560309,1.0,139.69,139.68,4.9338]
[1727901563310,1.0,139.72,139.68,1.3537]
[1727901563522,1.0,139.72,139.71,3.5793]